Cogmind - Beta 14 *** ADVENTURER MODE // 2024.08.29 @ 11:17:13 Player: AnotherZach Result: Self-destructed Performance ------------- Evolutions (0) 0 Regions Visited (4) 800 Robots Destroyed (58) 290 Value Destroyed (1355) 1355 Prototype IDs (1) 20 Alien Tech Used (0) 0 Bonus (118) 118 TOTAL SCORE: 2583 Bonus ------- Registered with UFD 300 Friendly Fire -182 Cogmind --------- Core Integrity 90/250 Matter 300/300 Energy 160/160 System Corruption 0% Temperature Cool (0) Movement Treading (320) Ox2 Location -9/Scraptown Parts ------- > --- POWER (1) -------- Light Nuclear Core > --- PROPULSION (2) --- Light Treads Light Treads > --- UTILITY (2) ------ Huge Storage Unit Gun Armor > --- WEAPON (2+2) ----- Gauss Rifle > --- INVENTORY (25) --- Light Ion Engine Light Treads Light Treads Heat Sink High-capacity Storage Unit High-capacity Matter Pod (200) Structural Scanner Signal Interpreter Advanced Signal Interpreter Improved Terrain Scanner Seismic Detector Targeting Computer Propulsion Shielding Light Armor Plating Hardlight Generator Authchip [R/NC] Authchip [R/Combat] Authchip [Armor] System Guard Tractor Beam Heavy Riot Gun Light Cannon Subdweller Shrapnel Launcher CPS Tube (2) Mining Claw Peak State ------------ > --- POWER ------------ Light Nuclear Core > --- PROPULSION ------- Light Treads Light Treads > --- UTILITY ---------- Huge Storage Unit Gun Armor > --- WEAPON ----------- Heavy Riot Gun Gauss Rifle > --- INVENTORY -------- Light Ion Engine Light Treads Light Treads Heat Sink High-capacity Storage Unit High-capacity Matter Pod Structural Scanner Signal Interpreter Advanced Signal Interpreter Improved Terrain Scanner Seismic Detector Targeting Computer Propulsion Shielding Light Armor Plating Hardlight Generator Authchip [R/NC] Authchip [R/Combat] Authchip [Armor] System Guard Tractor Beam Light Cannon Subdweller Shrapnel Launcher CPS Tube CPS Tube Mining Claw [Rating: 28] Favorites ----------- Power Light Nuclear Core Engine Ion Engine Power Core Light Nuclear Core Propulsion Light Treads Treads Light Treads Wheel Wheel Utility Huge Storage Unit Device Heat Sink Storage Huge Storage Unit Protection Gun Armor Weapon Heavy Riot Gun Energy Gun Heavy Riot Gun Energy Cannon Beam Cannon Ballistic Gun Gauss Rifle Ballistic Cannon Light Cannon Launcher Subdweller Shrapnel Launcher Special Weapon Mining Laser Slashing Weapon Mining Claw Build | -11 -10 -10 -9 -9 ------- Run | Yrd Mat Sub Rec Scr Slots Evolved . | . . . . . Power . | . . . . . Propulsion . | . . . . . Utility . | . . . . . Weapon . | . . . . . Parts Attached 82 | 7 34 27 13 1 Power 8 | 1 3 2 2 . Engine 5 | 1 1 2 1 . Core 3 | . 2 . 1 . Reactor . | . . . . . Propulsion 30 | 2 10 10 8 . Treads 11 | . 2 6 3 . Leg . | . . . . . Wheel 19 | 2 8 4 5 . Hover . | . . . . . Flight . | . . . . . Utility 18 | 2 12 4 . . Device 9 | 1 7 1 . . Storage 7 | 1 4 2 . . Processor . | . . . . . Hackware . | . . . . . Protection 2 | . 1 1 . . Artifact . | . . . . . Weapon 26 | 2 9 11 3 1 Energy Gun 7 | 2 2 2 1 . Energy Cannon 5 | . 2 3 . . Ballistic Gun 5 | . 4 . 1 . Ballistic Cannon 2 | . . 1 1 . Launcher 1 | . . 1 . . Special Weapon 2 | . 1 . . 1 Impact Weapon . | . . . . . Slashing Weapon 4 | . . 4 . . Piercing Weapon . | . . . . . Special Melee Weapon . | . . . . . Unidentified Prototypes 1 | . . 1 . . Parts Lost 6 | . 1 5 . . Power 2 | . . 2 . . Propulsion 2 | . 1 1 . . Utility 1 | . . 1 . . Weapon 1 | . . 1 . . Highest Loss Streak 2 | . 1 2 . . To Critical Strikes . | . . . . . Average Slot Usage (%) 82 | . 99 83 76 77 Engine 5 | . 9 11 1 . Core 6 | . 4 . 9 11 Treads 18 | . 17 14 18 22 Wheel 5 | . 10 9 3 . Device 3 | . 12 4 . . Storage 11 | . 14 12 11 11 Protection 8 | . 1 7 11 11 Energy Gun 8 | . 5 3 10 10 Energy Cannon 4 | . 10 9 . . Ballistic Gun 7 | . 10 . 9 11 Ballistic Cannon 1 | . . 5 . . Slashing Weapon 1 | . . 4 1 . Peak Build Rating 28 | 7 12 21 27 28 Average Rating 20 | 5 9 16 25 26 On Entrance 12 | . 7 9 18 27 Naked Turns . | . . . . . Heaviest Build 100 | 13 92 100 97 97 Greatest Support 40 | 26 40 40 40 40 Greatest Overweight (x) 9 | . 8 4 9 2 Average Overweight (x) 2 | . 1 2 2 2 Largest Inventory Capacity 25 | 8 25 25 25 25 Average Capacity 24 | 7 21 24 25 25 Most Carried 25 | 7 25 25 25 25 Average Carried 22 | 3 18 24 24 23 Final Capacity 25 | 8 25 25 25 25 Final Carried 25 | 7 25 25 25 25 Class Distribution -------------------- 50% | Commander-Mutant 40% | Mutant 9% | Scavenger-Mutant Dominant Class ---------------- Mutant | -10/Materials Mutant | -10/Subcaves Commander-Mutant | -9/Recycling Commander-Mutant | -9/Scraptown Resources | -11 -10 -10 -9 -9 ----------- Run | Yrd Mat Sub Rec Scr Matter Collected 1387 | 270 427 491 181 18 Remotely . | . . . . . Salvage Created 2481 | 125 553 631 1117 55 Parts 122 | 7 34 36 38 7 Haulers Intercepted 2 | . 2 . . . Recyclers Shooed 10 | . 1 . 9 . Parts Field Recycled . | . . . . . Retrieved Matter . | . . . . . Parts Self-Destructed 21 | . . 21 . . Prevented . | . . . . . Kills | -11 -10 -10 -9 -9 ------- Run | Yrd Mat Sub Rec Scr Combat Hostiles Destroyed 36 | . 11 16 9 . Melee 1 | . . . 1 . Guns 18 | . 8 4 6 . Cannons 16 | . 3 12 1 . AOE 1 | . . . 1 . Classes Destroyed 11 | 2 4 2 3 . Builder 1 | . . . 1 . Tunneler 3 | 2 1 . . . Hauler 2 | . 2 . . . Recycler 11 | 1 1 . 9 . Turret 1 | . . 1 . . Watcher 3 | . 3 . . . Swarmer 10 | . 6 3 1 . Grunt 7 | . 5 . 2 . Sentry 5 | . . . 4 1 Hunter 2 | . . . 2 . Subdweller 13 | . . 13 . . Best Kill Streak 7 | 3 4 4 7 . Combat Bots Only 6 | . 3 4 6 . Max Kills in Single Turn 3 | 1 1 1 3 1 Gunslinging . | . . . . . Exploded 1 | . . . 1 . Melee 1 | . . . 1 . Uniques/NPCs Destroyed . | . . . . . Combat | -11 -10 -10 -9 -9 -------- Run | Yrd Mat Sub Rec Scr Hostile Shots Fired 159 | . 37 114 7 1 Missed 48 | . 12 36 . . Damage Taken 1378 | . 224 1004 70 80 Core 160 | . 41 119 . . Absorbed by Shields . | . . . . . Ignored by Resistances 407 | . 73 291 22 21 Regen/Repaired (Parts) 29 | . 29 . . . Core Remaining (%) 100 | 100 . . . . Volleys Fired 138 | 6 62 57 11 2 Largest 2 | 2 2 2 2 2 Hottest 120 | 80 120 120 95 28 Shots Fired 250 | 12 107 109 18 4 Gun 129 | 12 72 29 14 2 Cannon 100 | . 18 78 4 . Launcher 2 | . . 2 . . Special 19 | . 17 . . 2 Kinetic 81 | . 53 19 7 2 Thermal 156 | 12 54 90 . . Explosive . | . . . . . Electromagnetic 11 | . . . 11 . Robot Hit Streak 50 | 5 10 50 21 6 Robot Miss Streak 3 | 1 2 3 1 . Penetration Max 1 | . . . 1 1 Secondary Targets 1 | . 1 . . . Max Gunslinging Chain 1 | . 1 . . . Shots Hit Robots 201 | 9 67 86 35 4 Core Hits 81 | 4 31 26 19 1 Critical Kills 1 | . 1 . . . Critical Parts Destroyed . | . . . . . Critical Strikes 2 | . 1 1 . . Destroy 2 | . 1 1 . . Melee Attacks 56 | . . 34 22 . Impact . | . . . . . Slashing 56 | . . 34 22 . Piercing . | . . . . . Sneak Attacks 11 | . . 1 10 . Combat Hostiles 1 | . . . 1 . Follow-up Attacks . | . . . . . Damage Inflicted 3849 | 99 768 1812 1106 64 Guns 1567 | 99 555 526 323 64 Cannons 1336 | . 189 1114 33 . Explosions 231 | . . 126 105 . Melee 691 | . . 46 645 . Ramming . | . . . . . Kinetic 823 | . 335 310 114 64 Thermal 2093 | 99 433 1456 105 . Explosive . | . . . . . Electromagnetic 242 | . . . 242 . Impact . | . . . . . Slashing 691 | . . 46 645 . Piercing . | . . . . . Highest Corruption . | . . . . . Average Corruption . | . . . . . Corruption Purged . | . . . . . Corruption Blocked . | . . . . . Overload Shots . | . . . . . Overflow Damage 134 | . 4 6 124 . Projectiles 12 | . 4 . 8 . Explosions 11 | . . . 11 . Melee 111 | . . 6 105 . Knockbacks 1 | . . 1 . . Impact . | . . . . . Kinetic 1 | . . 1 . . Secondary . | . . . . . Self-Inflicted Damage . | . . . . . Shots . | . . . . . Rammed . | . . . . . Targets Rammed . | . . . . . Kicked . | . . . . . Crushed . | . . . . . Highest Temperature 150 | 72 138 30 150 . Average Temperature 32 | 30 31 14 47 . Received Heat Transfer 342 | . 108 216 18 . Siege Activations . | . . . . . Robots Corrupted . | . . . . . Combat Hostiles . | . . . . . Parts Fried . | . . . . . Impact Corruptions . | . . . . . Robots Melted . | . . . . . Combat Hostiles . | . . . . . Parts Melted 4 | . 2 2 . . Heat Transferred 3789 | 225 975 2389 200 . Parts Sabotaged . | . . . . . Parts Stolen . | . . . . . Parts Stripped . | . . . . . Power Chain Reactions 2 | . . . 2 . Alert | -11 -10 -10 -9 -9 ------- Run | Yrd Mat Sub Rec Scr Peak Influence 231 | 15 131 . 231 . Initial 8 | . 8 . 3 . Average 38 | 5 55 . 27 . Maximum Alert Level 1 | . . . 1 . Low Security (%) 99 | 100 100 . 99 . Level 1 . | . . . . . Level 2 . | . . . . . Level 3 . | . . . . . Level 4 . | . . . . . Level 5 . | . . . . . High Security . | . . . . . Max Security . | . . . . . Squads Dispatched . | . . . . . Investigation . | . . . . . Extermination . | . . . . . Reinforcement . | . . . . . Assault . | . . . . . Garrison . | . . . . . Intercept . | . . . . . Searches Triggered . | . . . . . Construction Impeded . | . . . . . Haulers Reinforced . | . . . . . Active Scanning Responses . | . . . . . Cargo Convoy Interrupts . | . . . . . Stealth | -11 -10 -10 -9 -9 --------- Run | Yrd Mat Sub Rec Scr Distress Signals 3 | . 3 . . . Communications Jammed . | . . . . . Distress Signals . | . . . . . Times Spotted 42 | . 19 18 3 2 Peak Tracking Total 5 | . 5 3 3 2 Tactical Retreats 1 | . 1 . . . Traps | -11 -10 -10 -9 -9 ------- Run | Yrd Mat Sub Rec Scr Traps Triggered 4 | . 4 . . . Indirectly . | . . . . . Trap Hack Attempts . | . . . . . Triggered . | . . . . . Disarmed . | . . . . . Reprogrammed . | . . . . . Reused . | . . . . . Traps Extracted . | . . . . . Installed . | . . . . . Triggered . | . . . . . Most Traps Carried 1 | . . 1 1 . Machines | -11 -10 -10 -9 -9 ---------- Run | Yrd Mat Sub Rec Scr Machines Disabled 5 | . 2 2 . 1 Max in Single Turn 2 | . 1 2 . 1 Machines Repaired . | . . . . . Machines Dismantled . | . . . . . Machines Sabotaged . | . . . . . Overloaded Fab Kills . | . . . . . Hacking | -11 -10 -10 -9 -9 --------- Run | Yrd Mat Sub Rec Scr Machines Accessed 21 | . 11 . 10 . Terminals 13 | . 8 . 5 . Fabricators . | . . . . . Repair Stations 1 | . 1 . . . Recycling Units 7 | . 2 . 5 . Scanalyzers . | . . . . . Garrison Access . | . . . . . Total Hacks 62 | . 36 . 26 . Successful 43 | . 24 . 19 . Failed 18 | . 11 . 7 . Catastrophic 1 | . 1 . . . Database Lockouts 1 | . 1 . . . Manual 34 | . 25 . 9 . Terminals 40 | . 26 . 14 . Fabricators . | . . . . . Repair Stations 3 | . 3 . . . Recycling Units 19 | . 7 . 12 . Scanalyzers . | . . . . . Garrison Access . | . . . . . Terminal Hacks 13 | . 6 . 7 . Part Schematic 7 | . 1 . 6 . Robot Schematic 2 | . 2 . . . Robot Analysis 1 | . 1 . . . Terminal Index 1 | . 1 . . . Unreport Threat 2 | . 1 . 1 . Fabricator Hacks . | . . . . . Repair Station Hacks 2 | . 2 . . . Scan Component 1 | . 1 . . . Repair 1 | . 1 . . . Recycling Unit Hacks 5 | . 2 . 3 . Retrieve Components 5 | . 2 . 3 . Scanalyzer . | . . . . . Garrison Access Hacks . | . . . . . Unauthorized Hacks 23 | . 14 . 9 . Terminals 13 | . 11 . 2 . Track 3 | . 3 . . . Botnet 5 | . 3 . 2 . Skim 5 | . 5 . . . Fabricators . | . . . . . Repair Stations . | . . . . . Recycling Units 10 | . 3 . 7 . Reject 5 | . 2 . 3 . Recyclers 2 | . 1 . 1 . Tunnel 3 | . . . 3 . Scanalyzers . | . . . . . Garrison Access . | . . . . . Data Cores Recovered . | . . . . . Used . | . . . . . Hacking Detections 15 | . 10 . 5 . Full Trace Events 2 | . . . 2 . Feedback Events . | . . . . . Feedback Blocked . | . . . . . Robot Schematics Acquired 2 | . 2 . . . Robots Built . | . . . . . Authchips . | . . . . . Time . | . . . . . Total Robot Build Rating . | . . . . . Part Schematics Acquired 7 | . 1 . 6 . Parts Built . | . . . . . Authchips . | . . . . . Time . | . . . . . Total Part Build Rating . | . . . . . Parts Repaired 1 | . 1 . . . Time 26 | . 26 . . . Parts Recycled . | . . . . . Recycled Matter . | . . . . . Retrieved Matter . | . . . . . Retrieved Components 16 | . 3 . 13 . Parts Scanalyzed . | . . . . . Part Schematics Acquired . | . . . . . Parts Damaged . | . . . . . Bothacking | -11 -10 -10 -9 -9 ------------ Run | Yrd Mat Sub Rec Scr Used RIF Installer . | . . . . . Robots Hacked . | . . . . . Non-combat . | . . . . . Combat . | . . . . . Robot Hacks Applied . | . . . . . Relay Couplers Released . | . . . . . Fabnet Peak Effective % . | . . . . . Robots Rewired 9 | . . . 9 . Allies Hacked . | . . . . . Hacks Repelled . | . . . . . Allies | -11 -10 -10 -9 -9 -------- Run | Yrd Mat Sub Rec Scr Total Allies 9 | . . . 9 . Largest Group 8 | . . . 8 8 Highest-Rated Group 105 | . . . 105 105 Highest-Rated Ally 34 | . . . 34 34 Total Orders 1 | . . . . 1 STAY 1 | . . . . 1 Ally Attacks 6 | . . . 1 5 Total Damage 205 | . . . 25 180 Kills . | . . . . . Allies Corrupted . | . . . . . Allies Melted . | . . . . . Intel | -11 -10 -10 -9 -9 ------- Run | Yrd Mat Sub Rec Scr Robot Analysis Total 1 | . 1 . . . Derelict Logs Recovered 3 | . . . . 3 Drone Launches . | . . . . . Drone Recoveries . | . . . . . Exploration | -11 -10 -10 -9 -9 ------------- Run | Yrd Mat Sub Rec Scr Turns Passed 9295 | 90 1740 2395 2355 2715 Spaces Moved 3195 | 61 628 892 771 843 Core 1 | 1 . . . . Treads 2217 | . 340 452 582 843 Legs . | . . . . . Wheels 977 | 60 288 440 189 . Hover . | . . . . . Flight . | . . . . . Fastest Speed 50 | 50 90 120 130 320 Average Speed 254 | 89 192 229 274 320 Slowest Speed 320 | 100 320 320 320 320 Overloaded Moves . | . . . . . Propulsion Burnouts . | . . . . . Robots Hopped . | . . . . . Cave-ins Triggered . | . . . . . Exploration Rate (%) 63 | 4 99 55 97 60 Regions Visited 4 Branch Regions 3 Pre-discovered Areas 4 | . 1 . 3 . Known Exits Taken 1 | . 1 . . . Unknown Exits Taken 3 | 1 . 1 1 . Scrap Searched 2 | . . . . 2 Spaces Dug 1 | . 1 . . . Terrain Destroyed 31 | . 1 26 4 . Melee . | . . . . . Projectile 2 | . 1 1 . . AOE 29 | . . 25 4 . Terrain Rammed . | . . . . . Walls Destroyed . | . . . . . Machines Disabled . | . . . . . Actions | -11 -10 -10 -9 -9 --------- Run | Yrd Mat Sub Rec Scr Total 3993 | 80 1030 1071 954 858 Wait 293 | . 250 15 26 2 Move 3191 | 60 627 891 770 843 Hop . | . . . . . Pick Up 78 | 7 34 24 8 5 Fast Attach 24 | 7 11 3 3 . Attach 14 | . 4 6 4 . Detach 1 | . 1 . . . Swap 44 | . 19 18 6 1 Drop 65 | . 22 23 15 5 Fire 138 | 6 62 57 11 2 Melee 56 | . . 34 22 . Ram . | . . . . . Kick . | . . . . . Crush . | . . . . . Escape Stasis . | . . . . . Rewire 89 | . . . 89 . Trap . | . . . . . Miscellaneous . | . . . . . Route ------- -11/Scrapyard -10/Materials (discovered 5 exits: *Mat x3 / [*Min] / *Sub) -10/Subcaves -9/Recycling (discovered 2 exits: [*Fac] / [*Scr]) -9/Scraptown (discovered 1 exit: [*Fac]) History --------- Turn | Location | Event 15 | -11/Scrapyard | Discovered new exit (range 15) 91 | -11/Scrapyard | Entered Materials 304 | -10/Materials | Build established: Mutant 577 | -10/Materials | Repaired Wheel 635 | -10/Materials | Discovered new exit (range 16) 729 | -10/Materials | Discovered new exit (range 15) 786 | -10/Materials | Build established: Scavenger-Mutant 1126 | -10/Materials | Discovered new exit (range 3) 1339 | -10/Materials | Build established: Mutant 1499 | -10/Materials | Central database locked down 1560 | -10/Materials | Discovered new exit (range 9) 1682 | -10/Materials | Identified exit to Subcaves 1682 | -10/Materials | Learned location of 1 exit from Materials 1759 | -10/Materials | Learned Storage trap positions 1818 | -10/Materials | Identified exit to Materials 1831 | -10/Materials | Entered Subcaves 2091 | -10/Subcaves | A Subdweller sparked back to life 2091 | -10/Subcaves | A Subdweller sparked back to life 2189 | -10/Subcaves | Found Prototype Protection 2584 | -10/Subcaves | Shifting Twisted Machinery released Shrapnel Trap 2617 | -10/Subcaves | Shifting Twisted Machinery released Hvy. Riot Gun 2629 | -10/Subcaves | Build established: Scavenger-Mutant 2642 | -10/Subcaves | Identified Gun Armor 2644 | -10/Subcaves | Attached Gun Armor, gained temporary slots: Weapon x2 2941 | -10/Subcaves | Build established: Mutant 3155 | -10/Subcaves | Shifting Twisted Machinery released Sub. Shrapnel Launcher 3263 | -10/Subcaves | Core integrity fell below 50% 3766 | -10/Subcaves | A swath of the cavern ceiling suddenly collapsed 4175 | -10/Subcaves | Discovered new exit (range 14) 4226 | -10/Subcaves | Entered Recycling 4941 | -9/Recycling | Build established: Commander-Mutant 5353 | -9/Recycling | Discovered new exit (range 9) 6499 | -9/Recycling | Scanned before Scraplab entrance 6544 | -9/Recycling | Entered Scraplab 6570 | -9/Recycling | Discovered new exit (range 3) 6581 | -9/Recycling | Entered Scraptown 6581 | -9/Scraptown | Accompanied by 8 allies 6786 | -9/Scraptown | Heard Great Nut preacher, LISTEN AND RECITE! 7129 | -9/Scraptown | Visited Assassins FH 7173 | -9/Scraptown | Visited Shadow of the Wyrm 7657 | -9/Scraptown | Visited Fellowship of the Rings 7733 | -9/Scraptown | Visited CR-KLE's Repair Center 7852 | -9/Scraptown | Visited TADAMA 7951 | -9/Scraptown | Scanned Subdweller tech in exchange for log data 7961 | -9/Scraptown | Learned Research terminal intel 7967 | -9/Scraptown | Learned Factory trap positions 7970 | -9/Scraptown | Learned Research stockpile data 8018 | -9/Scraptown | Discovered new exit (range 11) 8379 | -9/Scraptown | Visited UFD Registry 8379 | -9/Scraptown | Registered with UFD as "Electrodome" 9181 | -9/Scraptown | Visited CPS Storage 9290 | -9/Scraptown | Attacked by Scraptown defenders 9296 | -9/Scraptown | Self-destructed Last Messages --------------- 09287_ Acquired 14 matter. 09290_ CPS Tube expended. 09290_ CPS modules attach to Bruiser 2a. 09290_ Slug penetrates Bruiser 2a. 09290_ Machine disabled. 09290_ ANNOUNCEMENT: Intruder alert! Defend Scraptown! 09291_ Acquired 4 matter. 09291_ Triborg activates siege mode. 09291_ Penetrated by Siege Slug. 09291_ Siege Slug penetrates Machine. 09291_ Machine disabled. 09291_ Siege Slug penetrates Machine. 09291_ Triborg suffers critical hit (Burn). 09293_ Siege Slug penetrates Defender 2b. 09293_ Siege Slug penetrates Machine. 09294_ 7S-7K0(j): "Nice to scrap you!" 09295_ Bruiser 2a suffers critical hit (Burn). 09295_ Siege Slug penetrates Grenadier 2a. 09295_ Grenadier 2a knocked back. Map ----- +----------------------------------------------------+ | #??# """"#???????????????????????????????????????? | | #??# || #???????????????????????????????????????? | | #??# """"#???????????????????????????????????????? | | #??# | #???????????????????????????????????????? | | #??# #???????????????????????????????????????? | | ###### ##########????????????????????????????????? | | #????????????????????????????????? | | #????????????????????????????????? | | #????????????????????????????????? | | #????????????????????????????????? | | #???????????? ???????????????????? | | ## #### #??????????? ?????????????????? | | "#?# #?????????? "?????????????????? | | "#?# #????????? ""????????????????? | | "#?# #????????? ""????????????????? | | " "#?# #???????? ""????????????????? | | " "#?# #???????" ""#???????????????? | | " "#?# ###?#???" ""#???????????????? | | "#?# ""#"#???" ""#???????????????? | | "??# """"#???" ""# " ??????????? | | """???# ""###???#" "" ??????????? | | ###???# ###?????#" "" ??????????? | | ??????# #########" ; "????????????? | | ??????# j [!= #???????????????? | | ??????# kk!%[ ""#???????????????? | | ??????# Y!@ ""#???????????????? | | ??????# d ""#???????????????? | | ####### TT t b t% ""#???????????????? | | TT """"??????????????? | | """???????????????? | | ??????????????? | | ????????????? | | ????????????? | | #""""#" ????????????? | | #?????" ???????????? | | #?????"""""" """ "????????????? | | ## ########## ####??????##### ###?#????????????? | | # #?# #??????????????? ????????????????? | | # #?# #????????????????????????????????? | | # #?# #????????????????????????????????? | | # #?# #????????????????????????????????? | | # #?# #????????????????????????????????? | | # #?# #????????????????????????????????? | | # #?# #????????????????????????????????? | | # #?# #????????????????????????????????? | | # #?# #????????????????????????????????? | | ###########?# #????????????????????????????????? | | ????????????# #????????????????????????????????? | | ?????######## #????????????????????????????????? | | ?????"""""""" #????????????????????????????????? | +----------------------------------------------------+ Best States ------------- Heat Dissipation 35 Coolant Potential 50 Energy Generation 14 Energy Capacity 250 Matter Stores 300 Matter Capacity 300 Sight Range 16 Terrain Scan Density 10 Armor Coverage 60 Resistance: KI 20 Resistance: TH 20 Resistance: EX 20 Resistance: EM 20 Resistance: I 20 Resistance: S 20 Resistance: P 20 Propulsion Shielding 33 Evasion (%) 42 Recoil Reduction 2 Offensive Hacking 10 Authchip Count 3 Item Schematics ----------------- Hcp. Storage Unit | -10/Materials | Hacked Hacking Suite | -9/Recycling | Hacked Med. Reactive Plating | -9/Recycling | Hacked Plasma Cannon | -9/Recycling | Hacked Carbon-fiber Leg | -9/Recycling | Hacked Xenon Bombardment Thruster | -9/Recycling | Hacked Hvy. Laser | -9/Recycling | Hacked Robot Schematics ------------------ M-13 Machinist | -10/Materials | Hacked O-16 Technician | -10/Materials | Hacked Fabricated ------------ Nothing Alien Tech Used ----------------- None Achievements -------------- None Challenges ------------ None Game ------ Seed CloakVoltaicShredder Manual? 0 Play Time 00:38:11 Cumulative 643.5 hours Start 2024.08.29 @ 10:39:04 End 2024.08.29 @ 11:17:13 Sessions 1 Manual Loads 0 Difficulty Adventurer Special Mode None Game No. 134 Rogue 0 Adventurer 134 Explorer 0 Win Type - Total 9 Types 6/0/1/2/0/0/0/0/0 Lore% 76 Gallery% 82 Achievement% 72 Wizard Run 0 Options --------- Layout 2 ASCII 0 Keyboard 0 Movement Mouse Keybinds 0 Fullscreen 1 Font 24/Smallcaps Map View 50x49 Zoom Use 9% Tactical HUD 1 Map Filters NONE Filters NONE Steam 1 RUN: 144e974d-857f-402a-8227-d672059cc258